Cogmind - Beta 11 @@@ ROGUE MODE // 2022.04.05 @ 19:46:38 Player: T-900 Result: Self-destructed Performance ------------- Evolutions (3) 1500 Regions Visited (6) 1200 Robots Destroyed (45) 225 Value Destroyed (1599) 1599 Prototype IDs (3) 60 Alien Tech Used (0) 0 Bonus (200) 200 TOTAL SCORE: 4784 Bonus ------- Pacifist 200 Cogmind --------- Core Integrity 147/700 Matter 300/300 Energy 100/100 System Corruption 1% Temperature Cool (27) Movement Core (250) Ox4 Location -7/Lower Caves Parts ------- > --- POWER (1) -------- (None) > --- PROPULSION (4) --- (None) > --- UTILITY (5) ------ Medium Storage Unit Advanced Targeting Computer > --- WEAPON (3) ------- Barrage Gun > --- INVENTORY (10) --- Improved Ion Engine Improved Deuterium Engine Aluminum Leg Heavy Armor Plating Remote Datajack Chainsword Ripper Peak State ------------ > --- POWER ------------ Heavy Ion Engine > --- PROPULSION ------- Light Treads Light Treads Light Treads Carbon-fiber Leg > --- UTILITY ---------- Improved Heat Sink Medium Storage Unit Advanced Targeting Computer Improved Light Armor Plating Improved Shield Generator > --- WEAPON ----------- Field Laser Gauss Rifle Chainsword > --- INVENTORY -------- Improved Ion Engine Aluminum Leg Heavy Armor Plating Beam Rifle Flak Gun Flak Gun Mini Grenade Launcher [Rating: 36] Favorites ----------- Power Heavy Ion Engine Engine Heavy Ion Engine Propulsion Aluminum Leg Treads Light Treads Leg Aluminum Leg Utility Small Storage Unit Device Sensor Array Storage Small Storage Unit Processor Advanced Targeting Computer Protection Improved Light Armor Plating Weapon Light Assault Rifle Energy Gun Field Laser Ballistic Gun Light Assault Rifle Launcher Mini Grenade Launcher Special Weapon Welding Torch Slashing Weapon Chainsword Build | -11 -10 -9 -9 -8 -7 -7 ------- Run | Scr Mat Mat Min Mat Fac Low Slots Evolved 6 | . . 2 . 2 2 . Power . | . . . . . . . Propulsion 2 | . . 1 . . 1 . Utility 3 | . . . . 2 1 . Weapon 1 | . . 1 . . . . Parts Attached 60 | 6 1 12 4 16 7 14 Power 11 | 1 . 2 2 4 . 2 Engine 11 | 1 . 2 2 4 . 2 Core . | . . . . . . . Reactor . | . . . . . . . Propulsion 16 | 3 . 6 . 4 1 2 Treads 7 | 1 . 1 . 2 1 2 Leg 9 | 2 . 5 . 2 . . Wheel . | . . . . . . . Hover . | . . . . . . . Flight . | . . . . . . . Utility 11 | 1 1 . . 5 4 . Device 5 | . 1 . . 3 1 . Storage 2 | 1 . . . . 1 . Processor 2 | . . . . 1 1 . Hackware . | . . . . . . . Protection 2 | . . . . 1 1 . Artifact . | . . . . . . . Weapon 22 | 1 . 4 2 3 2 10 Energy Gun 5 | . . 2 . 2 . 1 Energy Cannon . | . . . . . . . Ballistic Gun 11 | 1 . 2 2 . 1 5 Ballistic Cannon . | . . . . . . . Launcher 2 | . . . . . . 2 Special Weapon 1 | . . . . 1 . . Impact Weapon . | . . . . . . . Slashing Weapon 3 | . . . . . 1 2 Piercing Weapon . | . . . . . . . Special Melee Weapon . | . . . . . . . Unidentified Prototypes 1 | . . 1 . . . . Parts Lost 23 | . . . . 8 . 15 Power 3 | . . . . 1 . 2 Propulsion 8 | . . . . 3 . 5 Utility 4 | . . . . 1 . 3 Weapon 8 | . . . . 3 . 5 Highest Loss Streak 8 | . . . . 6 . 8 To Critical Strikes . | . . . . . . . Average Slot Usage (%) 86 | . 79 90 100 82 95 62 Engine 9 | . 14 11 11 9 7 4 Treads 7 | . . 2 . 8 23 11 Leg 18 | . 28 23 33 17 7 1 Device 10 | . 8 11 11 10 12 6 Storage 9 | . 14 11 11 9 7 7 Processor 4 | . . . . 8 7 7 Protection 2 | . . . . 3 6 1 Energy Gun 5 | . . 6 . 6 14 4 Ballistic Gun 15 | . 14 23 33 9 5 6 Naked Turns . | . . . . . . . Heaviest Build 36 | 11 12 19 16 23 36 36 Greatest Support 60 | 20 20 33 23 40 60 40 Greatest Overweight (x) 9 | 1 . 1 1 1 . 9 Average Overweight (x) . | . . . . . . 1 Largest Inventory Capacity 10 | 8 8 8 8 8 10 10 Average Capacity 8 | 6 8 8 8 8 9 10 Most Carried 10 | 6 7 8 8 8 9 10 Average Carried 7 | 4 6 7 7 6 7 8 Final Capacity 10 | 8 8 8 8 8 10 10 Final Carried 8 | 6 7 8 8 8 8 8 Class Distribution -------------------- 65% | Mutant 22% | Skirmisher 3% | Scavenger-Skirmisher 3% | Tank Dominant Class ---------------- Mutant | -10/Materials Mutant | -9/Materials Skirmisher | -9/Mines Mutant | -8/Materials Mutant | -7/Factory Mutant | -7/Lower Caves Resources | -11 -10 -9 -9 -8 -7 -7 ----------- Run | Scr Mat Mat Min Mat Fac Low Matter Collected 1272 | 242 . 240 80 256 70 384 Remotely . | . . . . . . . Salvage Created 1712 | . . 471 87 515 180 459 Parts 94 | . . 24 13 25 9 23 Haulers Intercepted 1 | . . . . 1 . . Recyclers Shooed 3 | . . 1 . 2 . . Parts Field Recycled . | . . . . . . . Retrieved Matter . | . . . . . . . Parts Self-Destructed 8 | . . . . . . 8 Prevented . | . . . . . . . Kills | -11 -10 -9 -9 -8 -7 -7 ------- Run | Scr Mat Mat Min Mat Fac Low Combat Hostiles Destroyed 42 | . . 9 6 9 3 15 Guns 32 | . . 9 6 7 3 7 AOE 10 | . . . . 2 . 8 Classes Destroyed 11 | . . 3 1 3 1 3 Builder 1 | . . . . 1 . . Hauler 1 | . . . . 1 . . Recycler 1 | . . 1 . . . . Swarmer 13 | . . . 6 . . 7 Grunt 17 | . . 7 . 6 1 3 Sentry 5 | . . 2 . 2 1 . Hunter 1 | . . . . 1 . . Programmer 1 | . . . . . 1 . Thug 1 | . . . . . . 1 Savage 1 | . . . . . . 1 Butcher 2 | . . . . . . 2 Mutant 1 | . . . . . . 1 Best Kill Streak 6 | . . 2 3 6 1 4 Combat Bots Only 4 | . . 2 3 4 1 4 Max Kills in Single Turn 3 | . . 2 2 2 1 3 Gunslinging 1 | . . 1 1 . . . Exploded 3 | . . . . 1 . 3 Melee . | . . . . . . . Uniques/NPCs Destroyed . | . . . . . . . Combat | -11 -10 -9 -9 -8 -7 -7 -------- Run | Scr Mat Mat Min Mat Fac Low Damage Taken 4304 | . . 639 251 1013 214 2187 Core 968 | . . 143 57 215 15 538 Absorbed by Shields 211 | . . . . . 72 139 Core Remaining (%) 77 | 100 100 . 50 60 . . Volleys Fired 174 | . . 45 13 50 13 53 Largest 3 | . . 3 3 3 3 3 Hottest 136 | . . 96 63 108 136 121 Shots Fired 346 | . . 103 39 84 36 84 Gun 338 | . . 103 39 82 36 78 Cannon . | . . . . . . . Launcher 6 | . . . . . . 6 Special 2 | . . . . 2 . . Kinetic 232 | . . 89 39 46 10 48 Thermal 79 | . . 14 . 22 13 30 Explosive 6 | . . . . . . 6 Electromagnetic 29 | . . . . 16 13 . Robot Hit Streak 14 | . . 14 6 12 12 11 Robot Miss Streak 6 | . . 2 3 5 3 6 Penetration Max 1 | . . . . . . 1 Secondary Targets 5 | . . 1 3 1 . . Max Gunslinging Chain 1 | . . 1 1 1 . . Shots Hit Robots 235 | . . 73 22 56 24 60 Core Hits 116 | . . 25 9 29 12 41 Critical Kills 1 | . . . . 1 . . Critical Parts Destroyed 4 | . . 2 . 1 . 1 Critical Strikes 8 | . . 3 . 2 . 3 Burn 2 | . . 1 . . . 1 Destroy 5 | . . 2 . 2 . 1 Sever 1 | . . . . . . 1 Melee Attacks 3 | . . . . . . 3 Impact . | . . . . . . . Slashing 3 | . . . . . . 3 Piercing . | . . . . . . . Sneak Attacks . | . . . . . . . Combat Hostiles . | . . . . . . . Follow-up Attacks . | . . . . . . . Damage Inflicted 3978 | . . 721 209 879 374 1795 Guns 3158 | . . 721 209 699 374 1155 Cannons . | . . . . . . . Explosions 769 | . . . . 179 . 590 Melee 50 | . . . . . . 50 Ramming 1 | . . . . 1 . . Kinetic 1999 | . . 561 209 307 91 831 Thermal 1004 | . . 160 . 352 168 324 Explosive 590 | . . . . . . 590 Electromagnetic 334 | . . . . 219 115 . Impact . | . . . . . . . Slashing 50 | . . . . . . 50 Piercing . | . . . . . . . Highest Corruption 4 | . . 4 4 . 1 1 Average Corruption 2 | . . 3 4 . 1 1 Corruption Purged . | . . . . . . . Corruption Blocked . | . . . . . . . Effects 23 | . . 6 15 . . 2 Message Errors 5 | . . 3 1 . . 1 Matter Fused 7 | . . 1 6 . . . Heat Flow Errors 2 | . . . 1 . . 1 Energy Discharges 2 | . . 1 1 . . . Data Loss (minor) 6 | . . 1 5 . . . Data Loss (major) 1 | . . . 1 . . . Overload Shots . | . . . . . . . Overflow Damage 70 | . . . . . . 70 Projectiles . | . . . . . . . Explosions 70 | . . . . . . 70 Melee . | . . . . . . . Knockbacks . | . . . . . . . Impact . | . . . . . . . Kinetic . | . . . . . . . Secondary . | . . . . . . . Self-Inflicted Damage 42 | . . . . . . 42 Shots 1 | . . . . . . 1 Rammed . | . . . . . . . Targets Rammed 1 | . . . . 1 . . Kicked 1 | . . . . 1 . . Crushed . | . . . . . . . Highest Temperature 346 | . . 346 196 27 65 111 Average Temperature 68 | . . 119 35 10 29 20 Received Heat Transfer 1190 | . . 339 . 387 50 414 Effects 4 | . . 4 . . . . Interference 4 | . . 4 . . . . Siege Activations . | . . . . . . . Robots Corrupted . | . . . . . . . Combat Hostiles . | . . . . . . . Parts Fried . | . . . . . . . Impact Corruptions . | . . . . . . . Robots Melted . | . . . . . . . Combat Hostiles . | . . . . . . . Parts Melted 2 | . . 1 . . . 1 Heat Transferred 2161 | . . 481 . 570 333 777 Parts Sabotaged . | . . . . . . . Parts Stolen . | . . . . . . . Parts Stripped . | . . . . . . . Power Chain Reactions 3 | . . . . 3 . . Missiles Intercepted . | . . . . . . . Alert | -11 -10 -9 -9 -8 -7 -7 ------- Run | Scr Mat Mat Min Mat Fac Low Peak Influence 217 | . 30 217 189 198 154 . Initial 89 | . . 12 84 19 89 . Average 73 | . 2 70 115 62 89 . Maximum Alert Level 1 | . . 1 . . . . Low Security (%) 99 | 100 100 96 100 100 100 . Level 1 . | . . 3 . . . . Level 2 . | . . . . . . . Level 3 . | . . . . . . . Level 4 . | . . . . . . . Level 5 . | . . . . . . . High Security . | . . . . . . . Max Security . | . . . . . . . Squads Dispatched 3 | . . . . 2 1 . Investigation 1 | . . . . 1 . . Extermination 1 | . . . . . 1 . Reinforcement 1 | . . . . 1 . . Assault . | . . . . . . . Garrison . | . . . . . . . Intercept . | . . . . . . . Searches Triggered . | . . . . . . . Construction Impeded . | . . . . . . . Haulers Reinforced . | . . . . . . . Active Scanning Responses . | . . . . . . . Cargo Convoy Interrupts . | . . . . . . . Stealth | -11 -10 -9 -9 -8 -7 -7 --------- Run | Scr Mat Mat Min Mat Fac Low Distress Signals 3 | . . 2 . 1 . . Communications Jammed . | . . . . . . . Distress Signals . | . . . . . . . Times Spotted 64 | . 1 12 8 11 7 25 Peak Tracking Total 13 | . 2 3 4 7 2 13 Tactical Retreats 5 | . 1 2 1 1 . . Traps | -11 -10 -9 -9 -8 -7 -7 ------- Run | Scr Mat Mat Min Mat Fac Low Traps Triggered 4 | . . 3 . 1 . . Indirectly . | . . . . . . . Trap Hack Attempts . | . . . . . . . Triggered . | . . . . . . . Disarmed . | . . . . . . . Reprogrammed . | . . . . . . . Reused . | . . . . . . . Traps Extracted . | . . . . . . . Installed . | . . . . . . . Triggered . | . . . . . . . Machines | -11 -10 -9 -9 -8 -7 -7 ---------- Run | Scr Mat Mat Min Mat Fac Low Machines Disabled . | . . . . . . . Max in Single Turn . | . . . . . . . Machines Sabotaged . | . . . . . . . Garrisons Compromised . | . . . . . . . Overloaded Fab Kills . | . . . . . . . Hacking | -11 -10 -9 -9 -8 -7 -7 --------- Run | Scr Mat Mat Min Mat Fac Low Machines Accessed 2 | . . 1 . . 1 . Terminals 1 | . . 1 . . . . Fabricators 1 | . . . . . 1 . Repair Stations . | . . . . . . . Recycling Units . | . . . . . . . Scanalyzers . | . . . . . . . Garrison Access . | . . . . . . . Total Hacks 4 | . . 3 . . 1 . Successful 2 | . . 2 . . . . Failed 2 | . . 1 . . 1 . Catastrophic . | . . . . . . . Database Lockouts . | . . . . . . . Manual 1 | . . . . . 1 . Terminals 3 | . . 3 . . . . Fabricators 1 | . . . . . 1 . Repair Stations . | . . . . . . . Recycling Units . | . . . . . . . Scanalyzers . | . . . . . . . Garrison Access . | . . . . . . . Terminal Hacks 2 | . . 2 . . . . Prototype ID Bank 1 | . . 1 . . . . Emergency Access Points 1 | . . 1 . . . . Fabricator Hacks . | . . . . . . . Repair Station Hacks . | . . . . . . . Recycling Unit Hacks . | . . . . . . . Scanalyzer . | . . . . . . . Garrison Access Hacks . | . . . . . . . Unauthorized Hacks . | . . . . . . . Terminals . | . . . . . . . Fabricators . | . . . . . . . Repair Stations . | . . . . . . . Recycling Units . | . . . . . . . Scanalyzers . | . . . . . . . Garrison Access . | . . . . . . . Data Cores Recovered . | . . . . . . . Used . | . . . . . . . Hacking Detections 2 | . . 1 . . 1 . Full Trace Events . | . . . . . . . Feedback Events . | . . . . . . . Feedback Blocked . | . . . . . . . Robot Schematics Acquired . | . . . . . . . Robots Built . | . . . . . . . Authchips . | . . . . . . . Time . | . . . . . . . Total Robot Build Rating . | . . . . . . . Part Schematics Acquired . | . . . . . . . Parts Built . | . . . . . . . Authchips . | . . . . . . . Time . | . . . . . . . Total Part Build Rating . | . . . . . . . Parts Repaired . | . . . . . . . Time . | . . . . . . . Parts Recycled . | . . . . . . . Recycled Matter . | . . . . . . . Retrieved Matter . | . . . . . . . Retrieved Components . | . . . . . . . Parts Scanalyzed . | . . . . . . . Part Schematics Acquired . | . . . . . . . Parts Damaged . | . . . . . . . Bothacking | -11 -10 -9 -9 -8 -7 -7 ------------ Run | Scr Mat Mat Min Mat Fac Low Used RIF Installer . | . . . . . . . Robots Hacked . | . . . . . . . Non-combat . | . . . . . . . Combat . | . . . . . . . Robot Hacks Applied . | . . . . . . . Relay Couplers Released . | . . . . . . . Fabnet Peak Effective % . | . . . . . . . Robots Rewired . | . . . . . . . Allies Hacked . | . . . . . . . Hacks Repelled . | . . . . . . . Allies | -11 -10 -9 -9 -8 -7 -7 -------- Run | Scr Mat Mat Min Mat Fac Low Total Allies . | . . . . . . . Largest Group . | . . . . . . . Highest-Rated Group . | . . . . . . . Highest-Rated Ally . | . . . . . . . Total Orders . | . . . . . . . Ally Attacks . | . . . . . . . Total Damage . | . . . . . . . Kills . | . . . . . . . Allies Corrupted . | . . . . . . . Allies Melted . | . . . . . . . Intel | -11 -10 -9 -9 -8 -7 -7 ------- Run | Scr Mat Mat Min Mat Fac Low Robot Analysis Total . | . . . . . . . Derelict Logs Recovered 2 | . . . 1 . . 1 Drone Launches . | . . . . . . . Drone Recoveries . | . . . . . . . Exploration | -11 -10 -9 -9 -8 -7 -7 ------------- Run | Scr Mat Mat Min Mat Fac Low Turns Passed 3152 | 72 216 727 517 651 513 456 Spaces Moved 1651 | 58 177 419 335 252 269 141 Core 52 | 20 . . . . . 32 Treads 441 | . . . . 63 269 109 Legs 1158 | 38 177 419 335 189 . . Wheels . | . . . . . . . Hover . | . . . . . . . Flight . | . . . . . . . Fastest Speed 50 | 50 120 120 120 120 160 160 Average Speed 138 | 97 120 121 139 131 160 206 Slowest Speed 500 | 120 120 190 190 190 160 500 Overloaded Moves . | . . . . . . . Propulsion Burnouts . | . . . . . . . Robots Hopped . | . . . . . . . Cave-ins Triggered . | . . . . . . . Exploration Rate (%) 27 | 4 29 28 77 29 8 14 Regions Visited 6 Branch Regions 2 Pre-discovered Areas . | . . . . . . . Known Exits Taken . | . . . . . . . Unknown Exits Taken 6 | 1 1 1 1 1 1 . Scrap Searched 2 | . . . 1 . . 1 Spaces Dug . | . . . . . . . Terrain Destroyed 56 | . . . . 17 . 39 Melee . | . . . . . . . Projectile . | . . . . . . . AOE 56 | . . . . 17 . 39 Terrain Rammed . | . . . . . . . Walls Destroyed . | . . . . . . . Machines Disabled . | . . . . . . . Actions | -11 -10 -9 -9 -8 -7 -7 --------- Run | Scr Mat Mat Min Mat Fac Low Total 2232 | 72 180 571 363 501 324 221 Wait 275 | . 1 75 6 168 25 . Move 1645 | 57 176 418 334 251 268 141 Hop . | . . . . . . . Pick Up 43 | 8 2 8 1 10 5 9 Fast Attach 15 | 4 . 4 1 2 4 . Attach 28 | 2 1 2 . 11 3 9 Detach . | . . . . . . . Swap 17 | . . 6 3 3 . 5 Drop 31 | 1 . 13 5 5 6 1 Fire 174 | . . 45 13 50 13 53 Melee 3 | . . . . . . 3 Ram . | . . . . . . . Kick 1 | . . . . 1 . . Crush . | . . . . . . . Escape Stasis . | . . . . . . . Rewire . | . . . . . . . Trap . | . . . . . . . Miscellaneous . | . . . . . . . Route ------- -11/Scrapyard -10/Materials -9/Materials -9/Mines -8/Materials -7/Factory -7/Lower Caves (discovered 1 exit: Low) History --------- Turn | Location | Event 6 | -11/Scrapyard | Discovered new exit (range 14) 73 | -11/Scrapyard | Entered Materials 125 | -10/Materials | Discovered new exit (range 5) 289 | -10/Materials | Entered another Materials area 289 | -9/Materials | Evolved 2 slots: Propulsion x1, Weapon x1 306 | -9/Materials | Build established: Mutant 897 | -9/Materials | Discovered new exit (range 12) 1016 | -9/Materials | Entered Mines 1178 | -9/Mines | Build established: Skirmisher 1312 | -9/Mines | Found a hidden stash of uninstalled traps 1367 | -9/Mines | Learned 2 Materials zone layouts 1526 | -9/Mines | Discovered new exit (range 6) 1533 | -9/Mines | Entered Materials 1533 | -8/Materials | Evolved 2 slots: Utility x2 1692 | -8/Materials | Lost 6 parts (1p2n1u2w) 1947 | -8/Materials | Build established: Mutant 2171 | -8/Materials | Discovered new exit (range 4) 2184 | -8/Materials | Entered Factory 2184 | -7/Factory | Evolved 2 slots: Propulsion x1, Utility x1 2682 | -7/Factory | Discovered new exit (range 6) 2697 | -7/Factory | Entered Lower Caves 2701 | -7/Lower Caves | Identified exit to Lower Caves 2814 | -7/Lower Caves | Attacked by a faux Warlord 2921 | -7/Lower Caves | Lost 8 parts (1p3n2u2w) 3063 | -7/Lower Caves | Core integrity fell below 50% 3095 | -7/Lower Caves | Lost 3 parts (1p1n1w) 3143 | -7/Lower Caves | Attracted the attention of an 0b10 base 3153 | -7/Lower Caves | Self-destructed Last Messages --------------- 03084_ Acquired 16 matter. 03087_ The unstable cave ceiling collapses. 03096_ Acquired 15 matter. 03113_ The unstable cave ceiling collapses. 03144_ Acquired 19 matter. 03146_ Penetrated by Slug. 03147_ Searching scrap... 03147_ Found Hpw. Tractor Beam. 03147_ Found Visual Processing Unit. 03147_ Found Plasma Cutter. 03147_ Found Machine Analyzer. 03147_ Found 22 Matter. 03150_ Flak Gun destroyed. 03150_ Destroyed Flak Gun. 03150_ S-27 Virus destroyed. 03150_ Destroyed Lgt. Nuclear Core. 03150_ S-27 Virus destroyed. 03150_ Penetrated by Slug. 03151_ Acquired 12 matter. 03152_ Mni. Grenade Launcher destroyed. Map ----- +----------------------------------------------------+ | ?????????????????????????????????????????????????? | | ?????????????????????????????????????????????????? | | ?????????????????????????????????????????????????? | | ?????????????????????????????????????????????????? | | ?????????????????????????????????????????????????? | | ?????????????????????????????????????????????????? | | ?????????????????????????????????????????????????? | | ?????????????????????????????????????????????????? | | ?????????????????????????????????????????????????? | | ???????????? ??????????????????????????????????? | | ???????????? ???????? """??????????????????????? | | ???????????? ???????? ?????????????????????? | | ???????????? #?????? ?????????????????????? | | ????????????# #? ?? ?????????????????????? | | ????????????# #? ? ?????????????????????? | | ????????????# #?? """"" ??????????????????????? | | ????????????# #??? " " ??????????????????????? | | ????????????# +??? ??????????????????????? | | ???????##???# +???? #??????????????????????? | | ???????# #### #????? g #???#??????????????????? | | ???????# #?????# g#??"#??????????????????? | | ??????## #?????#gY g#? "#??????????????????? | | ??????# #?????# gg # "#??????????????????? | | ??????# #?????#ss%=# "???????????????????? | | ???????# ####### %= ### #???????????????? | | ???????# !%@! #???????????????? | | ???????# [s #????????????#### | | ???????# ### ## #####????????????? | | ?????### # ### ##### ###?????????????????? | | ?????# #???##?????????????????????# | | ?????# # # ####????????????????????##?# | | ?????# ###/ #???????????????????# ### | | ?????# #! ! ! #???????####???????? ## | | ?????# # # ###[######### ##?????## # # | | ?????# # [ ### ## # ##???## ## | | ?????# # ## ! # # ##### # ### | | ?????# ## # # # ### | | ????# ##### #### ######### # # ### | | ???# ##??####???????## | | ?? ####### ##???????????????# # # | | ? ##??????## ###????????????????## ## ##### | | ##?????????###???????????????????## #######??# | | ###??????????????????????????????????###????????## | | ?????????????????????????????????????????????????? | | ?????????????????????????????????????????????????? | | ?????????????????????????????????????????????????? | | ?????????????????????????????????????????????????? | | ?????????????????????????????????????????????????? | | ?????????????????????????????????????????????????? | | ?????????????????????????????????????????????????? | +----------------------------------------------------+ Best States ------------- Heat Dissipation 48 Energy Generation 16 Energy Capacity 290 Matter Stores 300 Matter Capacity 300 Sight Range 16 Robot Scan Range 14 Terrain Scan Density 10 Armor Coverage 150 Evasion (%) 55 Targeting Accuracy 8 Recoil Reduction 3 Item Schematics ----------------- None Robot Schematics ------------------ None Fabricated ------------ Nothing Alien Tech Used ----------------- None Achievements -------------- None Challenges ------------ None Game ------ Seed MeleeMolecularShotgun Manual? 0 Play Time 00:46:04 Cumulative 30.2 hours Start 2022.04.05 @ 18:37:46 End 2022.04.05 @ 19:46:38 Sessions 1 Manual Loads 0 Difficulty Rogue Special Mode None Game No. 82 Rogue 82 Adventurer 0 Explorer 0 Win Type - Total 0 Types 0/0/0/0/0/0/0/0/0 Lore% 21 Gallery% 29 Achievement% 21 Wizard Run 0 Options --------- ASCII 0 Keyboard 0 Movement Mouse Keybinds 0 Fullscreen 1 Font 18/Terminus Map View 76x50 Tactical HUD 1 Map Filters NONE Filters NONE Steam 1 RUN: 176454db-2e60-4b1c-91c4-8cb9c10e539b